[Event "Titled Tuesday Blitz August 16 Early 2022"]
[White "Bolanos, Fernando"]
[Black "Estrada Nieto, Julian"]
[WhiteFideId "3304094"]
[BlackFideId "5101018"]
[WhiteElo "2086"]
[BlackElo "2252"]
[Result "1-0"]
[Round "07"]
[TimeControl "180+2"]
[Date "2022.08.18"]
[WhiteClock "0:00:00"]
[BlackClock "0:00:00"]

1. e4 {[%clk 0:00:00]}  e5 {[%clk 0:00:00]} 2. Nf3 {[%clk 0:00:00]}  Nc6 {[%clk 0:00:00]} 3. Bc4 {[%clk 0:00:00]}  Bc5 {[%clk 0:00:00]} 4. c3 {[%clk 0:00:00]}  Nf6 {[%clk 0:00:00]} 5. d4 {[%clk 0:00:00]}  exd4 {[%clk 0:00:00]} 6. b4 {[%clk 0:00:00]}  Bb6 {[%clk 0:00:00]} 7. e5 {[%clk 0:00:00]}  d6 {[%clk 0:00:00]} 8. exf6 {[%clk 0:00:00]}  d5 {[%clk 0:00:00]} 9. b5 {[%clk 0:00:00]}  dxc4 {[%clk 0:00:00]} 10. bxc6 {[%clk 0:00:00]}  Qxf6 {[%clk 0:00:00]} 11. cxd4 {[%clk 0:00:00]}  O-O {[%clk 0:00:00]} 12. O-O {[%clk 0:00:00]}  bxc6 {[%clk 0:00:00]} 13. Bg5 {[%clk 0:00:00]}  Qg6 {[%clk 0:00:00]} 14. Nc3 {[%clk 0:00:00]}  Bg4 {[%clk 0:00:00]} 15. Ne5 {[%clk 0:00:00]}  Qxg5 {[%clk 0:00:00]} 16. Qxg4 {[%clk 0:00:00]}  Qxg4 {[%clk 0:00:00]} 17. Nxg4 {[%clk 0:00:00]}  Bxd4 {[%clk 0:00:00]} 18. Rac1 {[%clk 0:00:00]}  Rab8 {[%clk 0:00:00]} 19. Ne2 {[%clk 0:00:00]}  Bb6 {[%clk 0:00:00]} 20. Rxc4 {[%clk 0:00:00]}  Rfe8 {[%clk 0:00:00]} 21. Nc3 {[%clk 0:00:00]}  f5 {[%clk 0:00:00]} 22. Ne3 {[%clk 0:00:00]}  Bxe3 {[%clk 0:00:00]} 23. fxe3 {[%clk 0:00:00]}  Rxe3 {[%clk 0:00:00]} 24. Rxc6 {[%clk 0:00:00]}  g6 {[%clk 0:00:00]} 25. Rxc7 {[%clk 0:00:00]}  Rb2 {[%clk 0:00:00]} 26. h3 {[%clk 0:00:00]}  Rc2 {[%clk 0:00:00]} 27. Nd5 {[%clk 0:00:00]}  Ree2 {[%clk 0:00:00]} 28. Rxc2 {[%clk 0:00:00]}  Rxc2 {[%clk 0:00:00]} 29. Nb4 {[%clk 0:00:00]}  Rb2 {[%clk 0:00:00]} 30. a3 {[%clk 0:00:00]}  a5 {[%clk 0:00:00]} 31. Nd5 {[%clk 0:00:00]}  Ra2 {[%clk 0:00:00]} 32. Rf3 {[%clk 0:00:00]}  Kf7 {[%clk 0:00:00]} 33. Nb6 {[%clk 0:00:00]}  Ke6 {[%clk 0:00:00]} 34. Rd3 {[%clk 0:00:00]}  g5 {[%clk 0:00:00]} 35. Nc4 {[%clk 0:00:00]}  a4 {[%clk 0:00:00]} 36. Nb6 {[%clk 0:00:00]}  f4 {[%clk 0:00:00]} 37. Nxa4 {[%clk 0:00:00]}  Ke5 {[%clk 0:00:00]} 38. Nc5 {[%clk 0:00:00]}  Rc2 {[%clk 0:00:00]} 39. Nb3 {[%clk 0:00:00]}  Ke4 {[%clk 0:00:00]} 40. Rd7 {[%clk 0:00:00]}  h5 {[%clk 0:00:00]} 41. a4 {[%clk 0:00:00]} 1-0


[Site "https://www.chess.com"]

[Event "Titled Tuesday Blitz August 16 Early 2022"]
[White "Brodowski, Piotr"]
[Black "Bharath Subramaniyam H"]
[WhiteFideId "1124480"]
[BlackFideId "46634827"]
[WhiteElo "2312"]
[BlackElo "2346"]
[Result "0-1"]
[Round "07"]
[TimeControl "180+1"]
[Date "2022.08.16"]
[WhiteClock "0:01:05"]
[BlackClock "0:01:29"]

1. c4 {[%clk 0:02:53]}  e5 {[%clk 0:02:57]} 2. Nc3 {[%clk 0:02:52]}  Nc6 {[%clk 0:02:57]} 3. Nf3 {[%clk 0:02:52]}  f5 {[%clk 0:02:54]} 4. g3 {[%clk 0:02:34]}  Nf6 {[%clk 0:02:53]} 5. d4 {[%clk 0:02:08]}  e4 {[%clk 0:02:52]} 6. Ng5 {[%clk 0:02:04]}  Bb4 {[%clk 0:02:47]} 7. Nh3 {[%clk 0:02:01]}  d5 {[%clk 0:02:43]} 8. c5 {[%clk 0:02:00]}  b6 {[%clk 0:02:27]} 9. cxb6 {[%clk 0:01:54]}  axb6 {[%clk 0:02:25]} 10. Bg2 {[%clk 0:01:54]}  O-O {[%clk 0:02:14]} 11. O-O {[%clk 0:01:54]}  Bxc3 {[%clk 0:02:14]} 12. bxc3 {[%clk 0:01:53]}  Ba6 {[%clk 0:02:15]} 13. Nf4 {[%clk 0:01:52]}  Qd7 {[%clk 0:02:14]} 14. h4 {[%clk 0:01:51]}  Bc4 {[%clk 0:02:13]} 15. Bh3 {[%clk 0:01:48]}  Bxa2 {[%clk 0:02:08]} 16. f3 {[%clk 0:01:23]}  Bc4 {[%clk 0:01:51]} 17. Rxa8 {[%clk 0:01:23]}  Rxa8 {[%clk 0:01:52]} 18. fxe4 {[%clk 0:01:23]}  Nxe4 {[%clk 0:01:49]} 19. Kh2 {[%clk 0:01:23]}  Nxc3 {[%clk 0:01:47]} 20. Qc2 {[%clk 0:01:19]}  Ne4 {[%clk 0:01:46]} 21. Nxd5 {[%clk 0:01:07]}  Qxd5 {[%clk 0:01:36]} 22. Rxf5 {[%clk 0:01:07]}  Nxd4 {[%clk 0:01:30]} 23. Qb1 {[%clk 0:01:05]}  Nxf5 {[%clk 0:01:29]} 0-1


[Site "https://www.chess.com"]

[Event "Titled Tuesday Blitz August 16 Early 2022"]
[White "Carrasco Miranda, Andres"]
[Black "Mirimanian, Hayk"]
[WhiteFideId "3405990"]
[BlackFideId "4700180"]
[WhiteElo "2177"]
[BlackElo "2280"]
[Result "0-1"]
[Round "07"]
[TimeControl "180+2"]
[Date "2022.08.18"]
[WhiteClock "0:00:00"]
[BlackClock "0:00:00"]

1. d4 {[%clk 0:00:00]}  Nf6 {[%clk 0:00:00]} 2. c4 {[%clk 0:00:00]}  e6 {[%clk 0:00:00]} 3. g3 {[%clk 0:00:00]}  d5 {[%clk 0:00:00]} 4. Bg2 {[%clk 0:00:00]}  Bb4+ {[%clk 0:00:00]} 5. Nd2 {[%clk 0:00:00]}  a5 {[%clk 0:00:00]} 6. Nf3 {[%clk 0:00:00]}  dxc4 {[%clk 0:00:00]} 7. O-O {[%clk 0:00:00]}  b5 {[%clk 0:00:00]} 8. a4 {[%clk 0:00:00]}  c6 {[%clk 0:00:00]} 9. Ne5 {[%clk 0:00:00]}  Ra6 {[%clk 0:00:00]} 10. e3 {[%clk 0:00:00]}  O-O {[%clk 0:00:00]} 11. Qc2 {[%clk 0:00:00]}  Rb6 {[%clk 0:00:00]} 12. Ne4 {[%clk 0:00:00]}  Nxe4 {[%clk 0:00:00]} 13. Bxe4 {[%clk 0:00:00]}  g6 {[%clk 0:00:00]} 14. Bg2 {[%clk 0:00:00]}  Qd6 {[%clk 0:00:00]} 15. Rd1 {[%clk 0:00:00]}  Nd7 {[%clk 0:00:00]} 16. Nf3 {[%clk 0:00:00]}  Qe7 {[%clk 0:00:00]} 17. Bd2 {[%clk 0:00:00]}  e5 {[%clk 0:00:00]} 18. Bxb4 {[%clk 0:00:00]}  axb4 {[%clk 0:00:00]} 19. axb5 {[%clk 0:00:00]}  cxb5 {[%clk 0:00:00]} 20. Ra7 {[%clk 0:00:00]}  Rb7 {[%clk 0:00:00]} 21. Nxe5 {[%clk 0:00:00]}  Nxe5 {[%clk 0:00:00]} 22. Bxb7 {[%clk 0:00:00]}  Nd3 {[%clk 0:00:00]} 23. Bxc8 {[%clk 0:00:00]}  Qxa7 {[%clk 0:00:00]} 24. Bh3 {[%clk 0:00:00]}  Qa2 {[%clk 0:00:00]} 25. Rd2 {[%clk 0:00:00]}  b3 {[%clk 0:00:00]} 26. Qc3 {[%clk 0:00:00]}  Qb1+ {[%clk 0:00:00]} 27. Bf1 {[%clk 0:00:00]}  Ra8 {[%clk 0:00:00]} 28. Kg2 {[%clk 0:00:00]}  Ne1+ {[%clk 0:00:00]} 29. Kh3 {[%clk 0:00:00]}  Nf3 {[%clk 0:00:00]} 30. Be2 {[%clk 0:00:00]}  Nxd2 {[%clk 0:00:00]} 31. Qxd2 {[%clk 0:00:00]}  Qc2 {[%clk 0:00:00]} 32. Qe1 {[%clk 0:00:00]}  Qxb2 {[%clk 0:00:00]} 33. Bf3 {[%clk 0:00:00]}  Rc8 {[%clk 0:00:00]} 34. d5 {[%clk 0:00:00]}  Qe5 {[%clk 0:00:00]} 35. e4 {[%clk 0:00:00]}  b2 {[%clk 0:00:00]} 36. Qb4 {[%clk 0:00:00]}  c3 {[%clk 0:00:00]} 37. d6 {[%clk 0:00:00]}  c2 {[%clk 0:00:00]} 38. d7 {[%clk 0:00:00]}  Qe6+ {[%clk 0:00:00]} 39. Bg4 {[%clk 0:00:00]}  Qxd7 {[%clk 0:00:00]} 40. Bxd7 {[%clk 0:00:00]}  c1=Q {[%clk 0:00:00]} 41. Bxc8 {[%clk 0:00:00]}  Qxc8+ {[%clk 0:00:00]} 42. Kg2 {[%clk 0:00:00]}  Qc2 {[%clk 0:00:00]} 43. Qxb5 {[%clk 0:00:00]}  b1=Q {[%clk 0:00:00]} 44. Qe8+ {[%clk 0:00:00]}  Kg7 {[%clk 0:00:00]} 45. Qe5+ {[%clk 0:00:00]}  Kf8 {[%clk 0:00:00]} 46. Qh8+ {[%clk 0:00:00]}  Ke7 {[%clk 0:00:00]} 47. Qe5+ {[%clk 0:00:00]}  Kd7 {[%clk 0:00:00]} 48. Qd5+ {[%clk 0:00:00]}  Kc8 {[%clk 0:00:00]} 49. Qa8+ {[%clk 0:00:00]}  Qb8 {[%clk 0:00:00]} 50. Qa6+ {[%clk 0:00:00]}  Qb7 {[%clk 0:00:00]} 0-1


[Site "https://www.chess.com"]

[Event "Titled Tuesday Blitz August 16 Early 2022"]
[White "Ciuffoletti, Paolo"]
[Black "Winkels, Marcel"]
[WhiteFideId "807630"]
[BlackFideId "1003887"]
[WhiteElo "2143"]
[BlackElo "1900"]
[Result "1-0"]
[Round "07"]
[TimeControl "180+2"]
[Date "2022.08.18"]
[WhiteClock "0:00:00"]
[BlackClock "0:00:00"]

1. e4 {[%clk 0:00:00]}  c5 {[%clk 0:00:00]} 2. d4 {[%clk 0:00:00]}  cxd4 {[%clk 0:00:00]} 3. c3 {[%clk 0:00:00]}  d5 {[%clk 0:00:00]} 4. exd5 {[%clk 0:00:00]}  Qxd5 {[%clk 0:00:00]} 5. cxd4 {[%clk 0:00:00]}  Nf6 {[%clk 0:00:00]} 6. Nf3 {[%clk 0:00:00]}  e6 {[%clk 0:00:00]} 7. Nc3 {[%clk 0:00:00]}  Qd8 {[%clk 0:00:00]} 8. Bd3 {[%clk 0:00:00]}  Be7 {[%clk 0:00:00]} 9. O-O {[%clk 0:00:00]}  O-O {[%clk 0:00:00]} 10. Re1 {[%clk 0:00:00]}  Nc6 {[%clk 0:00:00]} 11. a3 {[%clk 0:00:00]}  b6 {[%clk 0:00:00]} 12. Bg5 {[%clk 0:00:00]}  Bb7 {[%clk 0:00:00]} 13. Rc1 {[%clk 0:00:00]}  Rc8 {[%clk 0:00:00]} 14. Bb1 {[%clk 0:00:00]}  Nd5 {[%clk 0:00:00]} 15. Qd3 {[%clk 0:00:00]}  g6 {[%clk 0:00:00]} 16. Bh6 {[%clk 0:00:00]}  Re8 {[%clk 0:00:00]} 17. Ba2 {[%clk 0:00:00]}  Nxc3 {[%clk 0:00:00]} 18. Rxc3 {[%clk 0:00:00]}  Na5 {[%clk 0:00:00]} 19. Ne5 {[%clk 0:00:00]}  Rxc3 {[%clk 0:00:00]} 20. Qxc3 {[%clk 0:00:00]}  Bd5 {[%clk 0:00:00]} 21. Bxd5 {[%clk 0:00:00]}  exd5 {[%clk 0:00:00]} 22. b4 {[%clk 0:00:00]}  Nb7 {[%clk 0:00:00]} 23. Nc6 {[%clk 0:00:00]}  Qd7 {[%clk 0:00:00]} 24. b5 {[%clk 0:00:00]}  Nd6 {[%clk 0:00:00]} 25. Qd3 {[%clk 0:00:00]}  Bf8 {[%clk 0:00:00]} 26. Rxe8 {[%clk 0:00:00]}  Qxe8 {[%clk 0:00:00]} 27. Be3 {[%clk 0:00:00]}  Qd7 {[%clk 0:00:00]} 28. a4 {[%clk 0:00:00]}  Nc4 {[%clk 0:00:00]} 29. h4 {[%clk 0:00:00]}  a6 {[%clk 0:00:00]} 30. h5 {[%clk 0:00:00]}  axb5 {[%clk 0:00:00]} 31. axb5 {[%clk 0:00:00]}  gxh5 {[%clk 0:00:00]} 32. Qd1 {[%clk 0:00:00]}  Qg4 {[%clk 0:00:00]} 33. f3 {[%clk 0:00:00]}  Qg6 {[%clk 0:00:00]} 34. Qb3 {[%clk 0:00:00]}  Qe6 {[%clk 0:00:00]} 35. Bf2 {[%clk 0:00:00]}  Bg7 {[%clk 0:00:00]} 36. Qa4 {[%clk 0:00:00]}  h6 {[%clk 0:00:00]} 37. Qa8+ {[%clk 0:00:00]}  Kh7 {[%clk 0:00:00]} 38. Qd8 {[%clk 0:00:00]}  Qf6 {[%clk 0:00:00]} 39. Ne7 {[%clk 0:00:00]}  Bf8 {[%clk 0:00:00]} 40. Qxf8 {[%clk 0:00:00]}  Qg5 {[%clk 0:00:00]} 41. Qxf7+ {[%clk 0:00:00]}  Kh8 {[%clk 0:00:00]} 42. Ng6+ {[%clk 0:00:00]} 1-0


[Site "https://www.chess.com"]

[Event "Titled Tuesday Blitz August 16 Early 2022"]
[White "Danielyan, Vahe"]
[Black "Manukian, Artak"]
[WhiteFideId "13304828"]
[BlackFideId "13301373"]
[WhiteElo "2421"]
[BlackElo "2196"]
[Result "1-0"]
[Round "07"]
[TimeControl "180+2"]
[Date "2022.08.18"]
[WhiteClock "0:00:00"]
[BlackClock "0:00:00"]

1. c4 {[%clk 0:00:00]}  Nf6 {[%clk 0:00:00]} 2. Nc3 {[%clk 0:00:00]}  g6 {[%clk 0:00:00]} 3. e4 {[%clk 0:00:00]}  Bg7 {[%clk 0:00:00]} 4. e5 {[%clk 0:00:00]}  Ng8 {[%clk 0:00:00]} 5. d4 {[%clk 0:00:00]}  c5 {[%clk 0:00:00]} 6. d5 {[%clk 0:00:00]}  Bxe5 {[%clk 0:00:00]} 7. Nf3 {[%clk 0:00:00]}  Bg7 {[%clk 0:00:00]} 8. h4 {[%clk 0:00:00]}  h5 {[%clk 0:00:00]} 9. Bd3 {[%clk 0:00:00]}  d6 {[%clk 0:00:00]} 10. Ng5 {[%clk 0:00:00]}  Nh6 {[%clk 0:00:00]} 11. Qc2 {[%clk 0:00:00]}  Bf5 {[%clk 0:00:00]} 12. Bd2 {[%clk 0:00:00]}  Na6 {[%clk 0:00:00]} 13. a3 {[%clk 0:00:00]}  O-O {[%clk 0:00:00]} 14. O-O-O {[%clk 0:00:00]}  Nc7 {[%clk 0:00:00]} 15. f3 {[%clk 0:00:00]}  Bxd3 {[%clk 0:00:00]} 16. Qxd3 {[%clk 0:00:00]}  a6 {[%clk 0:00:00]} 17. g4 {[%clk 0:00:00]}  hxg4 {[%clk 0:00:00]} 18. h5 {[%clk 0:00:00]}  e5 {[%clk 0:00:00]} 19. hxg6 {[%clk 0:00:00]}  f5 {[%clk 0:00:00]} 20. Ne6 {[%clk 0:00:00]}  Nxe6 {[%clk 0:00:00]} 21. dxe6 {[%clk 0:00:00]}  gxf3 {[%clk 0:00:00]} 22. Rxh6 {[%clk 0:00:00]}  Bxh6 {[%clk 0:00:00]} 23. Bxh6 {[%clk 0:00:00]}  Qh4 {[%clk 0:00:00]} 24. Bd2 {[%clk 0:00:00]}  Kg7 {[%clk 0:00:00]} 25. Qxf3 {[%clk 0:00:00]}  Rf6 {[%clk 0:00:00]} 26. Rh1 {[%clk 0:00:00]}  Qg4 {[%clk 0:00:00]} 27. Qxb7+ {[%clk 0:00:00]}  Kxg6 {[%clk 0:00:00]} 28. Qh7# {[%clk 0:00:00]} 1-0


[Site "https://www.chess.com"]

[Event "Titled Tuesday Blitz August 16 Early 2022"]
[White "Demchenko, Anton"]
[Black "Omelja, Artem"]
[WhiteFideId "4160258"]
[BlackFideId "14119846"]
[WhiteElo "2539"]
[BlackElo "2382"]
[Result "1-0"]
[Round "07"]
[TimeControl "180+2"]
[Date "2022.08.18"]
[WhiteClock "0:00:00"]
[BlackClock "0:00:00"]

1. e4 {[%clk 0:00:00]}  c5 {[%clk 0:00:00]} 2. Nf3 {[%clk 0:00:00]}  e6 {[%clk 0:00:00]} 3. g3 {[%clk 0:00:00]}  Nc6 {[%clk 0:00:00]} 4. Bg2 {[%clk 0:00:00]}  Nf6 {[%clk 0:00:00]} 5. Qe2 {[%clk 0:00:00]}  d6 {[%clk 0:00:00]} 6. O-O {[%clk 0:00:00]}  Be7 {[%clk 0:00:00]} 7. c3 {[%clk 0:00:00]}  e5 {[%clk 0:00:00]} 8. Rd1 {[%clk 0:00:00]}  O-O {[%clk 0:00:00]} 9. d4 {[%clk 0:00:00]}  cxd4 {[%clk 0:00:00]} 10. cxd4 {[%clk 0:00:00]}  Nxd4 {[%clk 0:00:00]} 11. Nxd4 {[%clk 0:00:00]}  exd4 {[%clk 0:00:00]} 12. Rxd4 {[%clk 0:00:00]}  Qc7 {[%clk 0:00:00]} 13. Nc3 {[%clk 0:00:00]}  a6 {[%clk 0:00:00]} 14. Bf4 {[%clk 0:00:00]}  Be6 {[%clk 0:00:00]} 15. Rad1 {[%clk 0:00:00]}  Rfd8 {[%clk 0:00:00]} 16. Qd2 {[%clk 0:00:00]}  Ne8 {[%clk 0:00:00]} 17. Nd5 {[%clk 0:00:00]}  Bxd5 {[%clk 0:00:00]} 18. Rxd5 {[%clk 0:00:00]}  Rac8 {[%clk 0:00:00]} 19. Bh3 {[%clk 0:00:00]}  Rb8 {[%clk 0:00:00]} 20. Rd3 {[%clk 0:00:00]}  b5 {[%clk 0:00:00]} 21. Rc1 {[%clk 0:00:00]}  Qb7 {[%clk 0:00:00]} 22. Rdc3 {[%clk 0:00:00]}  Qxe4 {[%clk 0:00:00]} 23. Re1 {[%clk 0:00:00]}  Qb7 {[%clk 0:00:00]} 24. Bg2 {[%clk 0:00:00]}  Qa7 {[%clk 0:00:00]} 25. Bc6 {[%clk 0:00:00]}  Bf6 {[%clk 0:00:00]} 26. Rd3 {[%clk 0:00:00]}  Qb6 {[%clk 0:00:00]} 27. Bd5 {[%clk 0:00:00]}  Rbc8 {[%clk 0:00:00]} 28. h4 {[%clk 0:00:00]}  Nc7 {[%clk 0:00:00]} 29. Bb3 {[%clk 0:00:00]}  Ne8 {[%clk 0:00:00]} 30. h5 {[%clk 0:00:00]}  h6 {[%clk 0:00:00]} 31. Bxh6 {[%clk 0:00:00]}  gxh6 {[%clk 0:00:00]} 32. Qxh6 {[%clk 0:00:00]}  Bg7 {[%clk 0:00:00]} 33. Qg6 {[%clk 0:00:00]}  Rc4 {[%clk 0:00:00]} 34. Qg5 {[%clk 0:00:00]}  Qc5 {[%clk 0:00:00]} 35. Qxd8 {[%clk 0:00:00]}  Rc1 {[%clk 0:00:00]} 36. Qxe8+ {[%clk 0:00:00]}  Kh7 {[%clk 0:00:00]} 37. Rxc1 {[%clk 0:00:00]}  Qxc1+ {[%clk 0:00:00]} 38. Rd1 {[%clk 0:00:00]} 1-0


[Site "https://www.chess.com"]

[Event "Titled Tuesday Blitz August 16 Early 2022"]
[White "Demidov, Mikhail"]
[Black "Subelj, Jan"]
[WhiteFideId "4197143"]
[BlackFideId "14618583"]
[WhiteElo "2525"]
[BlackElo "2331"]
[Result "1-0"]
[Round "07"]
[TimeControl "180+1"]
[Date "2022.08.16"]
[WhiteClock "0:00:47"]
[BlackClock "0:00:38"]

1. Nf3 {[%clk 0:03:00]}  Nf6 {[%clk 0:02:59]} 2. g3 {[%clk 0:02:59]}  d5 {[%clk 0:02:54]} 3. Bg2 {[%clk 0:02:59]}  Bf5 {[%clk 0:02:54]} 4. c4 {[%clk 0:02:58]}  e6 {[%clk 0:02:54]} 5. Qb3 {[%clk 0:02:57]}  Nc6 {[%clk 0:02:51]} 6. O-O {[%clk 0:02:56]}  Rb8 {[%clk 0:02:44]} 7. d4 {[%clk 0:02:51]}  h6 {[%clk 0:02:41]} 8. Nc3 {[%clk 0:02:50]}  Be7 {[%clk 0:02:39]} 9. Bf4 {[%clk 0:02:49]}  O-O {[%clk 0:02:38]} 10. cxd5 {[%clk 0:02:47]}  Nxd5 {[%clk 0:02:39]} 11. Nxd5 {[%clk 0:02:45]}  exd5 {[%clk 0:02:40]} 12. Rfc1 {[%clk 0:02:43]}  Be4 {[%clk 0:02:38]} 13. Qd1 {[%clk 0:02:41]}  Bd6 {[%clk 0:02:30]} 14. Bxd6 {[%clk 0:02:37]}  Qxd6 {[%clk 0:02:29]} 15. e3 {[%clk 0:02:37]}  Ne7 {[%clk 0:02:28]} 16. Ne5 {[%clk 0:02:35]}  Bxg2 {[%clk 0:02:17]} 17. Kxg2 {[%clk 0:02:35]}  c6 {[%clk 0:02:16]} 18. Rab1 {[%clk 0:02:35]}  Ng6 {[%clk 0:02:16]} 19. Nd3 {[%clk 0:02:33]}  Rbe8 {[%clk 0:02:14]} 20. b4 {[%clk 0:02:32]}  a6 {[%clk 0:02:11]} 21. a4 {[%clk 0:02:31]}  Re7 {[%clk 0:02:06]} 22. b5 {[%clk 0:02:31]}  cxb5 {[%clk 0:02:07]} 23. axb5 {[%clk 0:02:30]}  a5 {[%clk 0:02:08]} 24. b6 {[%clk 0:02:29]}  Ra8 {[%clk 0:02:06]} 25. Qa4 {[%clk 0:02:28]}  h5 {[%clk 0:02:03]} 26. h4 {[%clk 0:02:24]}  Nxh4+ {[%clk 0:02:02]} 27. Kf1 {[%clk 0:02:20]}  Nf3 {[%clk 0:02:00]} 28. Rb5 {[%clk 0:02:14]}  h4 {[%clk 0:01:58]} 29. gxh4 {[%clk 0:02:07]}  Nxh4 {[%clk 0:01:50]} 30. Rxa5 {[%clk 0:01:44]}  Rxa5 {[%clk 0:01:42]} 31. Qxa5 {[%clk 0:01:44]}  Qh2 {[%clk 0:01:37]} 32. Rc7 {[%clk 0:01:30]}  Qh1+ {[%clk 0:01:21]} 33. Ke2 {[%clk 0:01:29]}  Qf3+ {[%clk 0:01:14]} 34. Kd2 {[%clk 0:01:26]}  Re6 {[%clk 0:01:07]} 35. Rxb7 {[%clk 0:01:15]}  Qf6 {[%clk 0:01:01]} 36. Rb8+ {[%clk 0:01:07]}  Kh7 {[%clk 0:01:01]} 37. Qxd5 {[%clk 0:01:01]}  Nf3+ {[%clk 0:01:00]} 38. Kd1 {[%clk 0:00:58]}  g6 {[%clk 0:00:55]} 39. Nf4 {[%clk 0:00:49]}  Nxd4 {[%clk 0:00:38]} 40. Qh1+ {[%clk 0:00:47]} 1-0


[Site "https://www.chess.com"]

[Event "Titled Tuesday Blitz August 16 Early 2022"]
[White "Demin, Vladimir"]
[Black "Vlassov, Nikolai"]
[WhiteFideId "4167457"]
[BlackFideId "4103360"]
[WhiteElo "2483"]
[BlackElo "2324"]
[Result "0-1"]
[Round "07"]
[TimeControl "180+1"]
[Date "2022.08.16"]
[WhiteClock "0:00:08"]
[BlackClock "0:00:21"]

1. d4 {[%clk 0:03:00]}  Nf6 {[%clk 0:02:59]} 2. Nc3 {[%clk 0:03:01]}  d5 {[%clk 0:02:59]} 3. Bf4 {[%clk 0:03:00]}  g6 {[%clk 0:02:57]} 4. e3 {[%clk 0:02:59]}  c6 {[%clk 0:02:53]} 5. Be2 {[%clk 0:02:57]}  Qb6 {[%clk 0:02:52]} 6. Rb1 {[%clk 0:02:55]}  Bg7 {[%clk 0:02:52]} 7. h4 {[%clk 0:02:53]}  h5 {[%clk 0:02:52]} 8. Nf3 {[%clk 0:02:53]}  O-O {[%clk 0:02:50]} 9. Ne5 {[%clk 0:02:53]}  Nbd7 {[%clk 0:02:48]} 10. f3 {[%clk 0:02:36]}  Nxe5 {[%clk 0:02:45]} 11. Bxe5 {[%clk 0:02:37]}  Bh6 {[%clk 0:02:45]} 12. Qd3 {[%clk 0:02:33]}  Nd7 {[%clk 0:02:31]} 13. Bh2 {[%clk 0:02:32]}  Re8 {[%clk 0:02:27]} 14. g4 {[%clk 0:02:16]}  hxg4 {[%clk 0:02:24]} 15. fxg4 {[%clk 0:02:15]}  e5 {[%clk 0:02:24]} 16. Bg1 {[%clk 0:01:41]}  exd4 {[%clk 0:02:20]} 17. exd4 {[%clk 0:01:41]}  Bf4 {[%clk 0:01:52]} 18. g5 {[%clk 0:01:30]}  Nf8 {[%clk 0:01:46]} 19. h5 {[%clk 0:01:28]}  Bf5 {[%clk 0:01:43]} 20. Qf3 {[%clk 0:01:24]}  Qc7 {[%clk 0:01:41]} 21. hxg6 {[%clk 0:01:22]}  fxg6 {[%clk 0:01:34]} 22. Kf1 {[%clk 0:01:09]}  Ne6 {[%clk 0:01:31]} 23. Bd3 {[%clk 0:00:56]}  Rf8 {[%clk 0:01:21]} 24. Bxf5 {[%clk 0:00:51]}  Rxf5 {[%clk 0:01:20]} 25. Qh3 {[%clk 0:00:49]}  Bxg5+ {[%clk 0:01:15]} 26. Ke1 {[%clk 0:00:46]}  Qg7 {[%clk 0:01:10]} 27. Ne2 {[%clk 0:00:41]}  Re8 {[%clk 0:01:09]} 28. Kd1 {[%clk 0:00:39]}  Nf4 {[%clk 0:00:51]} 29. Nxf4 {[%clk 0:00:35]}  Rxf4 {[%clk 0:00:52]} 30. c3 {[%clk 0:00:17]}  Rh4 {[%clk 0:00:44]} 31. Qg2 {[%clk 0:00:16]}  Rxh1 {[%clk 0:00:44]} 32. Qxh1 {[%clk 0:00:17]}  Qf6 {[%clk 0:00:44]} 33. Kc2 {[%clk 0:00:17]}  Qf5+ {[%clk 0:00:44]} 34. Kb3 {[%clk 0:00:17]}  Qxb1 {[%clk 0:00:43]} 35. Qg2 {[%clk 0:00:15]}  Qd1+ {[%clk 0:00:38]} 36. Ka3 {[%clk 0:00:13]}  Be7+ {[%clk 0:00:38]} 37. b4 {[%clk 0:00:13]}  Qd3 {[%clk 0:00:33]} 38. Kb3 {[%clk 0:00:12]}  a5 {[%clk 0:00:32]} 39. a3 {[%clk 0:00:11]}  Kf7 {[%clk 0:00:27]} 40. Bh2 {[%clk 0:00:09]}  a4+ {[%clk 0:00:24]} 41. Kxa4 {[%clk 0:00:08]}  Qc4 {[%clk 0:00:21]} 0-1


[Site "https://www.chess.com"]

[Event "Titled Tuesday Blitz August 16 Early 2022"]
[White "Dushyant Sharma"]
[Black "Acosta Cruz, Oscar Yosimar"]
[WhiteFideId "25065130"]
[BlackFideId "5111269"]
[WhiteElo "2406"]
[BlackElo "2098"]
[Result "0-1"]
[Round "07"]
[TimeControl "180+2"]
[Date "2022.08.18"]
[WhiteClock "0:00:00"]
[BlackClock "0:00:00"]

1. e4 {[%clk 0:00:00]}  e5 {[%clk 0:00:00]} 2. Nf3 {[%clk 0:00:00]}  Nf6 {[%clk 0:00:00]} 3. Nc3 {[%clk 0:00:00]}  Bb4 {[%clk 0:00:00]} 4. Bc4 {[%clk 0:00:00]}  O-O {[%clk 0:00:00]} 5. O-O {[%clk 0:00:00]}  Bxc3 {[%clk 0:00:00]} 6. bxc3 {[%clk 0:00:00]}  d6 {[%clk 0:00:00]} 7. d3 {[%clk 0:00:00]}  Nbd7 {[%clk 0:00:00]} 8. Bg5 {[%clk 0:00:00]}  h6 {[%clk 0:00:00]} 9. Bh4 {[%clk 0:00:00]}  Re8 {[%clk 0:00:00]} 10. Rb1 {[%clk 0:00:00]}  Nf8 {[%clk 0:00:00]} 11. Bg3 {[%clk 0:00:00]}  b6 {[%clk 0:00:00]} 12. Nh4 {[%clk 0:00:00]}  Be6 {[%clk 0:00:00]} 13. Bxe6 {[%clk 0:00:00]}  Nxe6 {[%clk 0:00:00]} 14. Nf5 {[%clk 0:00:00]}  Qd7 {[%clk 0:00:00]} 15. Bh4 {[%clk 0:00:00]}  Nh7 {[%clk 0:00:00]} 16. Qg4 {[%clk 0:00:00]}  f6 {[%clk 0:00:00]} 17. Nxh6+ {[%clk 0:00:00]}  Kh8 {[%clk 0:00:00]} 18. Nf5 {[%clk 0:00:00]}  Nf4 {[%clk 0:00:00]} 19. Ng3 {[%clk 0:00:00]}  Qxg4 {[%clk 0:00:00]} 0-1


[Site "https://www.chess.com"]